[Event "Titled Tuesday Blitz July 4 Early 2023"]
[White "Labussiere, Yago"]
[Black "Thecourseoisildur"]
[WhiteFideId "2186969"]
[WhiteElo "2398"]
[BlackElo "2557"]
[Result "1-0"]
[Round "10"]
[TimeControl "180+2"]
[Date "2023.07.04"]
[WhiteClock "0:00:51"]
[BlackClock "0:00:00"]
[Board "77"]

1. d4 {[%clk 0:03:00]}  Nf6 {[%clk 0:03:00]} 2. c4 {[%clk 0:03:00]}  g6 {[%clk 0:03:01]} 3. Nc3 {[%clk 0:02:59]}  d5 {[%clk 0:03:01]} 4. cxd5 {[%clk 0:03:00]}  Nxd5 {[%clk 0:03:02]} 5. e4 {[%clk 0:02:58]}  Nxc3 {[%clk 0:03:02]} 6. bxc3 {[%clk 0:02:59]}  Bg7 {[%clk 0:03:03]} 7. Bc4 {[%clk 0:03:00]}  c5 {[%clk 0:03:02]} 8. Ne2 {[%clk 0:03:00]}  O-O {[%clk 0:03:02]} 9. O-O {[%clk 0:03:01]}  Nc6 {[%clk 0:03:02]} 10. Be3 {[%clk 0:03:00]}  Bg4 {[%clk 0:03:03]} 11. f3 {[%clk 0:03:00]}  Bd7 {[%clk 0:03:03]} 12. Rb1 {[%clk 0:02:56]}  Rc8 {[%clk 0:03:04]} 13. dxc5 {[%clk 0:02:46]}  Qc7 {[%clk 0:02:59]} 14. Qc2 {[%clk 0:02:31]}  Ne5 {[%clk 0:02:47]} 15. Bb3 {[%clk 0:02:31]}  b6 {[%clk 0:02:38]} 16. cxb6 {[%clk 0:02:27]}  axb6 {[%clk 0:02:39]} 17. Rfc1 {[%clk 0:02:24]}  b5 {[%clk 0:02:36]} 18. Bf2 {[%clk 0:02:11]}  Bh6 {[%clk 0:02:08]} 19. Rd1 {[%clk 0:02:11]}  b4 {[%clk 0:02:08]} 20. c4 {[%clk 0:02:08]}  Be6 {[%clk 0:01:58]} 21. c5 {[%clk 0:02:08]}  Bxb3 {[%clk 0:01:51]} 22. Rxb3 {[%clk 0:02:08]}  Rfd8 {[%clk 0:01:48]} 23. Rxb4 {[%clk 0:02:05]}  Rxd1+ {[%clk 0:01:45]} 24. Qxd1 {[%clk 0:02:06]}  Rd8 {[%clk 0:01:45]} 25. Rd4 {[%clk 0:02:05]}  Rxd4 {[%clk 0:01:43]} 26. Qxd4 {[%clk 0:02:03]}  Bg7 {[%clk 0:01:41]} 27. Qd5 {[%clk 0:01:57]}  Qa5 {[%clk 0:01:40]} 28. h4 {[%clk 0:01:47]}  e6 {[%clk 0:01:36]} 29. Qb3 {[%clk 0:01:46]}  h5 {[%clk 0:01:26]} 30. Kh2 {[%clk 0:01:35]}  Qd2 {[%clk 0:01:25]} 31. Qe3 {[%clk 0:01:23]}  Qxa2 {[%clk 0:01:21]} 32. Bg3 {[%clk 0:01:21]}  Qc2 {[%clk 0:01:08]} 33. Ng1 {[%clk 0:01:06]}  Nd7 {[%clk 0:00:59]} 34. Bd6 {[%clk 0:01:05]}  Bf8 {[%clk 0:00:46]} 35. Bxf8 {[%clk 0:01:00]}  Kxf8 {[%clk 0:00:42]} 36. Nh3 {[%clk 0:01:00]}  Nxc5 {[%clk 0:00:38]} 37. Qh6+ {[%clk 0:01:00]}  Ke7 {[%clk 0:00:35]} 38. Ng5 {[%clk 0:01:00]}  Qc3 {[%clk 0:00:22]} 39. Qh7 {[%clk 0:00:59]}  Qe5+ {[%clk 0:00:23]} 40. Kh3 {[%clk 0:00:57]}  Qf6 {[%clk 0:00:18]} 41. Qg8 {[%clk 0:00:57]}  Nd3 {[%clk 0:00:17]} 42. Qb8 {[%clk 0:00:56]}  Nf4+ {[%clk 0:00:12]} 43. Kh2 {[%clk 0:00:56]}  Ne2 {[%clk 0:00:09]} 44. Qb4+ {[%clk 0:00:55]}  Kd8 {[%clk 0:00:07]} 45. Qd2+ {[%clk 0:00:54]}  Nd4 {[%clk 0:00:05]} 46. Nxf7+ {[%clk 0:00:54]}  Ke7 {[%clk 0:00:03]} 47. Ng5 {[%clk 0:00:55]}  Qe5+ {[%clk 0:00:03]} 48. f4 {[%clk 0:00:54]}  Qd6 {[%clk 0:00:02]} 49. Qe3 {[%clk 0:00:50]}  Qc5 {[%clk 0:00:02]} 50. Qd3 {[%clk 0:00:49]}  Qd6 {[%clk 0:00:01]} 51. e5 {[%clk 0:00:48]}  Qd5 {[%clk 0:00:02]} 52. Qxg6 {[%clk 0:00:48]}  Qc4 {[%clk 0:00:01]} 53. Qf7+ {[%clk 0:00:48]}  Kd8 {[%clk 0:00:01]} 54. Qf6+ {[%clk 0:00:48]}  Kd7 {[%clk 0:00:01]} 55. Qf7+ {[%clk 0:00:48]}  Kc6 {[%clk 0:00:01]} 56. Qxh5 {[%clk 0:00:49]}  Kd5 {[%clk 0:00:01]} 57. Qg4 {[%clk 0:00:50]}  Kc5 {[%clk 0:00:01]} 58. h5 {[%clk 0:00:50]}  Qd3 {[%clk 0:00:01]} 59. h6 {[%clk 0:00:50]}  Qg6 {[%clk 0:00:01]} 60. h7 {[%clk 0:00:50]}  Qh6+ {[%clk 0:00:00]} 61. Qh3 {[%clk 0:00:51]} 1-0


[Site "https://www.chess.com"]

[Event "Titled Tuesday Blitz July 4 Early 2023"]
[White "Kovalevsky, Stanislav"]
[Black "Matinian, Nikita"]
[WhiteFideId "13508598"]
[BlackFideId "24129100"]
[WhiteElo "2485"]
[BlackElo "2688"]
[Result "0-1"]
[Round "10"]
[TimeControl "180+2"]
[Date "2023.07.04"]
[WhiteClock "0:00:37"]
[BlackClock "0:00:50"]
[Board "81"]

1. c4 {[%clk 0:02:57]}  g6 {[%clk 0:02:58]} 2. Nc3 {[%clk 0:02:57]}  Bg7 {[%clk 0:02:58]} 3. g3 {[%clk 0:02:58]}  e5 {[%clk 0:02:58]} 4. Bg2 {[%clk 0:02:58]}  Nc6 {[%clk 0:02:57]} 5. h4 {[%clk 0:02:59]}  Nf6 {[%clk 0:02:53]} 6. d3 {[%clk 0:02:59]}  O-O {[%clk 0:02:52]} 7. Bg5 {[%clk 0:02:59]}  Nd4 {[%clk 0:02:48]} 8. h5 {[%clk 0:02:54]}  h6 {[%clk 0:02:44]} 9. Bxf6 {[%clk 0:02:42]}  Qxf6 {[%clk 0:02:43]} 10. hxg6 {[%clk 0:02:43]}  fxg6 {[%clk 0:02:43]} 11. Nf3 {[%clk 0:02:42]}  c6 {[%clk 0:02:37]} 12. Qd2 {[%clk 0:02:38]}  d6 {[%clk 0:02:33]} 13. O-O-O {[%clk 0:02:34]}  Bf5 {[%clk 0:02:21]} 14. Nxd4 {[%clk 0:02:29]}  exd4 {[%clk 0:02:20]} 15. Ne4 {[%clk 0:02:29]}  Qe7 {[%clk 0:02:19]} 16. f4 {[%clk 0:02:12]}  d5 {[%clk 0:02:12]} 17. cxd5 {[%clk 0:02:12]}  cxd5 {[%clk 0:02:13]} 18. Nf2 {[%clk 0:02:12]}  Be6 {[%clk 0:01:41]} 19. Kb1 {[%clk 0:01:50]}  a5 {[%clk 0:01:41]} 20. g4 {[%clk 0:01:43]}  a4 {[%clk 0:01:41]} 21. Rdf1 {[%clk 0:01:33]}  a3 {[%clk 0:01:41]} 22. b3 {[%clk 0:01:32]}  Rac8 {[%clk 0:01:41]} 23. f5 {[%clk 0:01:19]}  gxf5 {[%clk 0:01:39]} 24. gxf5 {[%clk 0:01:19]}  Rxf5 {[%clk 0:01:19]} 25. Bf3 {[%clk 0:01:19]}  Rg5 {[%clk 0:01:07]} 26. Nh3 {[%clk 0:01:14]}  Bxh3 {[%clk 0:01:06]} 27. Rxh3 {[%clk 0:01:13]}  Qc5 {[%clk 0:01:00]} 28. Rh5 {[%clk 0:00:55]}  Qc3 {[%clk 0:00:46]} 29. Qxc3 {[%clk 0:00:53]}  dxc3 {[%clk 0:00:46]} 30. Bxd5+ {[%clk 0:00:52]}  Rxd5 {[%clk 0:00:45]} 31. Rxd5 {[%clk 0:00:47]}  c2+ {[%clk 0:00:45]} 32. Kc1 {[%clk 0:00:48]}  Bb2+ {[%clk 0:00:45]} 33. Kd2 {[%clk 0:00:48]}  c1=Q+ {[%clk 0:00:46]} 34. Rxc1 {[%clk 0:00:48]}  Rxc1 {[%clk 0:00:46]} 35. Rb5 {[%clk 0:00:44]}  Ra1 {[%clk 0:00:46]} 36. Rxb7 {[%clk 0:00:42]}  Rxa2 {[%clk 0:00:46]} 37. b4 {[%clk 0:00:41]}  Bd4+ {[%clk 0:00:46]} 38. Kd1 {[%clk 0:00:40]}  Rb2 {[%clk 0:00:44]} 39. Rb8+ {[%clk 0:00:40]}  Kg7 {[%clk 0:00:44]} 40. Ra8 {[%clk 0:00:40]}  a2 {[%clk 0:00:45]} 41. e3 {[%clk 0:00:38]}  Rb1+ {[%clk 0:00:45]} 42. Kc2 {[%clk 0:00:37]}  a1=Q {[%clk 0:00:45]} 43. Rxa1 {[%clk 0:00:37]}  Rxa1 {[%clk 0:00:46]} 44. exd4 {[%clk 0:00:37]}  h5 {[%clk 0:00:46]} 45. b5 {[%clk 0:00:37]}  Ra8 {[%clk 0:00:47]} 46. d5 {[%clk 0:00:37]}  h4 {[%clk 0:00:48]} 47. Kc3 {[%clk 0:00:37]}  h3 {[%clk 0:00:49]} 48. Kc4 {[%clk 0:00:37]}  Rb8 {[%clk 0:00:50]} 49. d6 {[%clk 0:00:38]}  h2 {[%clk 0:00:50]} 50. b6 {[%clk 0:00:38]}  h1=Q {[%clk 0:00:51]} 51. d7 {[%clk 0:00:37]}  Qc6+ {[%clk 0:00:50]} 0-1


[Site "https://www.chess.com"]

[Event "Titled Tuesday Blitz July 4 Early 2023"]
[White "Sadykov, Ramil"]
[Black "Heinemann, Josefine"]
[WhiteFideId "24113590"]
[BlackFideId "12900460"]
[WhiteElo "2598"]
[BlackElo "2473"]
[Result "1/2-1/2"]
[Round "10"]
[TimeControl "180+2"]
[Date "2023.07.04"]
[WhiteClock "0:00:27"]
[BlackClock "0:00:19"]
[Board "83"]

1. d4 {[%clk 0:03:00]}  d5 {[%clk 0:02:57]} 2. c4 {[%clk 0:03:00]}  c6 {[%clk 0:02:52]} 3. Nf3 {[%clk 0:03:00]}  Nf6 {[%clk 0:02:52]} 4. g3 {[%clk 0:03:00]}  g6 {[%clk 0:02:50]} 5. Bg2 {[%clk 0:03:01]}  Bg7 {[%clk 0:02:51]} 6. O-O {[%clk 0:03:01]}  O-O {[%clk 0:02:51]} 7. Nc3 {[%clk 0:02:59]}  dxc4 {[%clk 0:02:51]} 8. Ne5 {[%clk 0:02:53]}  Ng4 {[%clk 0:02:44]} 9. Nxg4 {[%clk 0:02:51]}  Bxg4 {[%clk 0:02:43]} 10. h3 {[%clk 0:02:52]}  Be6 {[%clk 0:02:41]} 11. e3 {[%clk 0:02:51]}  b5 {[%clk 0:02:41]} 12. Nxb5 {[%clk 0:02:48]}  Bd5 {[%clk 0:02:39]} 13. Nc3 {[%clk 0:02:47]}  Bxg2 {[%clk 0:02:39]} 14. Kxg2 {[%clk 0:02:47]}  Nd7 {[%clk 0:02:38]} 15. Qa4 {[%clk 0:02:39]}  c5 {[%clk 0:02:38]} 16. dxc5 {[%clk 0:02:38]}  Nxc5 {[%clk 0:02:39]} 17. Qxc4 {[%clk 0:02:38]}  Rc8 {[%clk 0:02:38]} 18. Rd1 {[%clk 0:02:36]}  Qb6 {[%clk 0:02:33]} 19. Nd5 {[%clk 0:02:33]}  Qb7 {[%clk 0:02:32]} 20. Kg1 {[%clk 0:02:29]}  Rfd8 {[%clk 0:02:21]} 21. Nc3 {[%clk 0:01:43]}  Rxd1+ {[%clk 0:02:04]} 22. Nxd1 {[%clk 0:01:43]}  Ne4 {[%clk 0:02:04]} 23. Qb3 {[%clk 0:01:37]}  Qc6 {[%clk 0:02:03]} 24. h4 {[%clk 0:01:19]}  g5 {[%clk 0:01:51]} 25. h5 {[%clk 0:00:53]}  g4 {[%clk 0:01:51]} 26. Kf1 {[%clk 0:00:44]}  Ng5 {[%clk 0:01:49]} 27. Bd2 {[%clk 0:00:31]}  Qh1+ {[%clk 0:01:40]} 28. Ke2 {[%clk 0:00:31]}  Qf3+ {[%clk 0:01:39]} 29. Ke1 {[%clk 0:00:32]}  Ne4 {[%clk 0:01:17]} 30. Qd3 {[%clk 0:00:28]}  Qh1+ {[%clk 0:00:51]} 31. Ke2 {[%clk 0:00:28]}  Qg2 {[%clk 0:00:46]} 32. Ke1 {[%clk 0:00:27]}  Qh1+ {[%clk 0:00:19]} 33. Ke2 {[%clk 0:00:27]}  Qf3+ {[%clk 0:00:19]} 34. Ke1 {[%clk 0:00:27]}  Qh1+ {[%clk 0:00:19]} 1/2-1/2


[Site "https://www.chess.com"]

[Event "Titled Tuesday Blitz July 4 Early 2023"]
[White "Ai, Evan"]
[Black "Skliarov, Viktor"]
[WhiteFideId "2094770"]
[BlackFideId "14106736"]
[WhiteElo "2454"]
[BlackElo "2596"]
[Result "1/2-1/2"]
[Round "10"]
[TimeControl "180+2"]
[Date "2023.07.04"]
[WhiteClock "0:01:28"]
[BlackClock "0:00:18"]
[Board "84"]

1. d4 {[%clk 0:02:57]}  Nf6 {[%clk 0:02:59]} 2. Nf3 {[%clk 0:02:56]}  g6 {[%clk 0:02:59]} 3. g3 {[%clk 0:02:54]}  Bg7 {[%clk 0:03:00]} 4. Bg2 {[%clk 0:02:54]}  O-O {[%clk 0:03:01]} 5. O-O {[%clk 0:02:54]}  c6 {[%clk 0:03:00]} 6. c4 {[%clk 0:02:54]}  d5 {[%clk 0:02:58]} 7. cxd5 {[%clk 0:02:54]}  cxd5 {[%clk 0:02:58]} 8. Nc3 {[%clk 0:02:55]}  Ne4 {[%clk 0:02:55]} 9. Bf4 {[%clk 0:02:54]}  Nxc3 {[%clk 0:02:54]} 10. bxc3 {[%clk 0:02:55]}  Nc6 {[%clk 0:02:55]} 11. Nd2 {[%clk 0:02:51]}  e5 {[%clk 0:02:51]} 12. dxe5 {[%clk 0:02:52]}  Nxe5 {[%clk 0:02:51]} 13. Rc1 {[%clk 0:02:47]}  Be6 {[%clk 0:02:41]} 14. Nb3 {[%clk 0:02:44]}  Nc6 {[%clk 0:02:33]} 15. Nc5 {[%clk 0:02:38]}  Qa5 {[%clk 0:02:03]} 16. Nxb7 {[%clk 0:02:33]}  Qxa2 {[%clk 0:02:00]} 17. Nc5 {[%clk 0:02:26]}  Qc4 {[%clk 0:01:53]} 18. Nxe6 {[%clk 0:02:21]}  fxe6 {[%clk 0:01:52]} 19. Qd3 {[%clk 0:02:20]}  Qxd3 {[%clk 0:00:44]} 20. exd3 {[%clk 0:02:21]}  a5 {[%clk 0:00:40]} 21. c4 {[%clk 0:02:20]}  Nb4 {[%clk 0:00:38]} 22. Bd6 {[%clk 0:01:55]}  Rfd8 {[%clk 0:00:37]} 23. Bxb4 {[%clk 0:01:54]}  axb4 {[%clk 0:00:37]} 24. cxd5 {[%clk 0:01:54]}  exd5 {[%clk 0:00:37]} 25. Rc5 {[%clk 0:01:55]}  Rab8 {[%clk 0:00:33]} 26. Bxd5+ {[%clk 0:01:50]}  Kf8 {[%clk 0:00:28]} 27. Bc4 {[%clk 0:01:51]}  b3 {[%clk 0:00:28]} 28. Rb1 {[%clk 0:01:48]}  b2 {[%clk 0:00:24]} 29. Kf1 {[%clk 0:01:42]}  Rdc8 {[%clk 0:00:21]} 30. Rxc8+ {[%clk 0:01:41]}  Rxc8 {[%clk 0:00:21]} 31. Ke2 {[%clk 0:01:42]}  Ra8 {[%clk 0:00:20]} 32. Kd2 {[%clk 0:01:42]}  Ra1 {[%clk 0:00:20]} 33. Kc2 {[%clk 0:01:42]}  Bd4 {[%clk 0:00:20]} 34. f3 {[%clk 0:01:40]}  h6 {[%clk 0:00:19]} 35. h3 {[%clk 0:01:39]}  Ke7 {[%clk 0:00:19]} 36. Bd5 {[%clk 0:01:33]}  g5 {[%clk 0:00:18]} 37. Be4 {[%clk 0:01:28]}  Kf6 {[%clk 0:00:18]} 1/2-1/2


[Site "https://www.chess.com"]

[Event "Titled Tuesday Blitz July 4 Early 2023"]
[White "Czerw, Dawid"]
[Black "Omariev, Maksim"]
[WhiteFideId "1145746"]
[BlackFideId "4193423"]
[WhiteElo "2581"]
[BlackElo "2444"]
[Result "1-0"]
[Round "10"]
[TimeControl "180+2"]
[Date "2023.07.04"]
[WhiteClock "0:02:02"]
[BlackClock "0:00:25"]
[Board "85"]

1. e4 {[%clk 0:03:00]}  c5 {[%clk 0:02:59]} 2. Nf3 {[%clk 0:03:01]}  d6 {[%clk 0:02:59]} 3. d4 {[%clk 0:03:01]}  cxd4 {[%clk 0:03:00]} 4. Nxd4 {[%clk 0:03:02]}  Nf6 {[%clk 0:03:01]} 5. Nc3 {[%clk 0:03:02]}  a6 {[%clk 0:03:02]} 6. h4 {[%clk 0:03:03]}  b5 {[%clk 0:03:00]} 7. Nd5 {[%clk 0:03:02]}  Nbd7 {[%clk 0:02:59]} 8. Nc6 {[%clk 0:02:57]}  Nxd5 {[%clk 0:01:01]} 9. Nxd8 {[%clk 0:02:46]}  Nb4 {[%clk 0:01:01]} 10. a3 {[%clk 0:02:39]}  Nxc2+ {[%clk 0:00:55]} 11. Qxc2 {[%clk 0:02:38]}  Kxd8 {[%clk 0:00:56]} 12. Bd2 {[%clk 0:02:35]}  Bb7 {[%clk 0:00:54]} 13. Ba5+ {[%clk 0:02:34]}  Ke8 {[%clk 0:00:54]} 14. Qc7 {[%clk 0:02:26]}  Bxe4 {[%clk 0:00:52]} 15. Rc1 {[%clk 0:02:18]}  e6 {[%clk 0:00:46]} 16. Qc8+ {[%clk 0:02:06]}  Rxc8 {[%clk 0:00:43]} 17. Rxc8+ {[%clk 0:02:07]}  Ke7 {[%clk 0:00:44]} 18. Bd8+ {[%clk 0:02:06]}  Ke8 {[%clk 0:00:25]} 19. Bf6# {[%clk 0:02:02]} 1-0


[Site "https://www.chess.com"]

[Event "Titled Tuesday Blitz July 4 Early 2023"]
[White "Asavasaetakul, Chawit"]
[Black "Ahn, Hongjin"]
[WhiteFideId "6204856"]
[BlackFideId "13201492"]
[WhiteElo "2566"]
[BlackElo "2389"]
[Result "1-0"]
[Round "10"]
[TimeControl "180+2"]
[Date "2023.07.04"]
[WhiteClock "0:02:01"]
[BlackClock "0:01:36"]
[Board "86"]

1. e4 {[%clk 0:03:00]}  c5 {[%clk 0:03:00]} 2. c3 {[%clk 0:02:59]}  Nc6 {[%clk 0:03:00]} 3. d4 {[%clk 0:03:00]}  cxd4 {[%clk 0:02:58]} 4. cxd4 {[%clk 0:03:00]}  d5 {[%clk 0:02:59]} 5. exd5 {[%clk 0:03:01]}  Qxd5 {[%clk 0:02:57]} 6. Nf3 {[%clk 0:03:02]}  Bg4 {[%clk 0:02:56]} 7. Nc3 {[%clk 0:03:02]}  Qh5 {[%clk 0:02:56]} 8. d5 {[%clk 0:03:02]}  Ne5 {[%clk 0:02:50]} 9. Bb5+ {[%clk 0:03:02]}  Bd7 {[%clk 0:02:49]} 10. Be2 {[%clk 0:03:00]}  Nf6 {[%clk 0:02:41]} 11. O-O {[%clk 0:02:59]}  e6 {[%clk 0:02:33]} 12. dxe6 {[%clk 0:02:40]}  fxe6 {[%clk 0:02:30]} 13. Bf4 {[%clk 0:02:31]}  Ng6 {[%clk 0:02:19]} 14. Ne5 {[%clk 0:02:21]}  Qf5 {[%clk 0:02:13]} 15. Nxd7 {[%clk 0:02:21]}  Nxd7 {[%clk 0:02:13]} 16. Bb5 {[%clk 0:02:20]}  Rd8 {[%clk 0:02:11]} 17. Bc7 {[%clk 0:02:15]}  Ne5 {[%clk 0:01:43]} 18. Bxd8 {[%clk 0:02:09]}  Kxd8 {[%clk 0:01:44]} 19. Re1 {[%clk 0:02:06]}  Bc5 {[%clk 0:01:39]} 20. Rxe5 {[%clk 0:02:01]}  Qxf2+ {[%clk 0:01:36]} 21. Kh1 {[%clk 0:02:01]} 1-0


[Site "https://www.chess.com"]

[Event "Titled Tuesday Blitz July 4 Early 2023"]
[White "Petrova, Irina"]
[Black "Terletsky, Oleg"]
[WhiteFideId "14124122"]
[BlackFideId "14116774"]
[WhiteElo "2379"]
[BlackElo "2541"]
[Result "0-1"]
[Round "10"]
[TimeControl "180+2"]
[Date "2023.07.04"]
[WhiteClock "0:01:46"]
[BlackClock "0:00:56"]
[Board "87"]

1. e4 {[%clk 0:03:00]}  e5 {[%clk 0:02:59]} 2. Nf3 {[%clk 0:03:00]}  Nc6 {[%clk 0:02:59]} 3. Bc4 {[%clk 0:03:00]}  Nf6 {[%clk 0:02:59]} 4. Ng5 {[%clk 0:02:59]}  d5 {[%clk 0:02:58]} 5. exd5 {[%clk 0:02:59]}  Na5 {[%clk 0:02:59]} 6. Bb5+ {[%clk 0:02:59]}  c6 {[%clk 0:03:00]} 7. dxc6 {[%clk 0:02:59]}  bxc6 {[%clk 0:03:00]} 8. Qf3 {[%clk 0:03:00]}  Be7 {[%clk 0:03:00]} 9. O-O {[%clk 0:02:54]}  O-O {[%clk 0:02:54]} 10. Bd3 {[%clk 0:02:53]}  h6 {[%clk 0:02:43]} 11. Ne4 {[%clk 0:02:51]}  Nd5 {[%clk 0:02:19]} 12. Nec3 {[%clk 0:02:27]}  f5 {[%clk 0:02:12]} 13. Nxd5 {[%clk 0:02:08]}  cxd5 {[%clk 0:02:10]} 14. Qh5 {[%clk 0:02:01]}  e4 {[%clk 0:02:00]} 15. Bb5 {[%clk 0:01:57]}  f4 {[%clk 0:01:41]} 16. b4 {[%clk 0:01:55]}  Rf5 {[%clk 0:01:37]} 17. Qg6 {[%clk 0:01:51]}  Rg5 {[%clk 0:01:24]} 18. Qe8+ {[%clk 0:01:50]}  Qxe8 {[%clk 0:01:22]} 19. Bxe8 {[%clk 0:01:51]}  Bh3 {[%clk 0:01:04]} 20. bxa5 {[%clk 0:01:47]}  Bxg2 {[%clk 0:00:57]} 21. Bc6 {[%clk 0:01:46]}  Bf3# {[%clk 0:00:56]} 0-1


[Site "https://www.chess.com"]

[Event "Titled Tuesday Blitz July 4 Early 2023"]
[White "robertoalejandro10"]
[Black "Todorovic, Bojan"]
[BlackFideId "917087"]
[WhiteElo "2531"]
[BlackElo "2366"]
[Result "1-0"]
[Round "10"]
[TimeControl "180+2"]
[Date "2023.07.04"]
[WhiteClock "0:00:02"]
[BlackClock "0:00:00"]
[Board "91"]

1. Nf3 {[%clk 0:03:00]}  g6 {[%clk 0:02:58]} 2. c4 {[%clk 0:03:01]}  Bg7 {[%clk 0:02:58]} 3. g3 {[%clk 0:03:01]}  Nf6 {[%clk 0:02:57]} 4. Bg2 {[%clk 0:03:02]}  O-O {[%clk 0:02:57]} 5. O-O {[%clk 0:03:02]}  d6 {[%clk 0:02:57]} 6. Nc3 {[%clk 0:03:02]}  c6 {[%clk 0:02:57]} 7. b3 {[%clk 0:03:00]}  a6 {[%clk 0:02:45]} 8. Bb2 {[%clk 0:02:55]}  b5 {[%clk 0:02:44]} 9. cxb5 {[%clk 0:02:53]}  axb5 {[%clk 0:02:44]} 10. Nd4 {[%clk 0:02:52]}  Ra6 {[%clk 0:02:38]} 11. Qc1 {[%clk 0:02:32]}  b4 {[%clk 0:02:30]} 12. Ne4 {[%clk 0:02:21]}  Nxe4 {[%clk 0:02:20]} 13. Bxe4 {[%clk 0:02:22]}  c5 {[%clk 0:02:20]} 14. Nc2 {[%clk 0:02:13]}  Bxb2 {[%clk 0:02:16]} 15. Qxb2 {[%clk 0:02:13]}  Nc6 {[%clk 0:01:47]} 16. Rfd1 {[%clk 0:02:11]}  Qb6 {[%clk 0:01:44]} 17. Ne3 {[%clk 0:02:05]}  Be6 {[%clk 0:01:29]} 18. Bd5 {[%clk 0:01:44]}  Nd4 {[%clk 0:01:20]} 19. Bxe6 {[%clk 0:01:32]}  fxe6 {[%clk 0:01:20]} 20. Re1 {[%clk 0:01:19]}  Rfa8 {[%clk 0:01:11]} 21. Nc2 {[%clk 0:01:17]}  e5 {[%clk 0:01:07]} 22. Nxd4 {[%clk 0:01:16]}  exd4 {[%clk 0:01:04]} 23. e3 {[%clk 0:01:11]}  e5 {[%clk 0:00:54]} 24. exd4 {[%clk 0:01:09]}  cxd4 {[%clk 0:00:54]} 25. Qc2 {[%clk 0:00:56]}  Qc6 {[%clk 0:00:54]} 26. Qb2 {[%clk 0:00:45]}  R8a7 {[%clk 0:00:49]} 27. Rec1 {[%clk 0:00:43]}  Qa8 {[%clk 0:00:49]} 28. Qc2 {[%clk 0:00:40]}  Rxa2 {[%clk 0:00:43]} 29. Rxa2 {[%clk 0:00:41]}  Rxa2 {[%clk 0:00:42]} 30. Qc4+ {[%clk 0:00:41]}  Kg7 {[%clk 0:00:31]} 31. Qc7+ {[%clk 0:00:40]}  Kh6 {[%clk 0:00:31]} 32. Qxd6 {[%clk 0:00:38]}  Qf3 {[%clk 0:00:28]} 33. Qxb4 {[%clk 0:00:19]}  Rb2 {[%clk 0:00:22]} 34. h4 {[%clk 0:00:09]}  Rxb3 {[%clk 0:00:17]} 35. Qe7 {[%clk 0:00:08]}  Qf5 {[%clk 0:00:04]} 36. Qd6 {[%clk 0:00:02]}  Rb2 {[%clk 0:00:02]} 37. Rd1 {[%clk 0:00:02]}  Rc2 {[%clk 0:00:01]} 38. Qd8 {[%clk 0:00:02]}  e4 {[%clk 0:00:00]} 39. Re1 {[%clk 0:00:02]} 1-0


[Site "https://www.chess.com"]

[Event "Titled Tuesday Blitz July 4 Early 2023"]
[White "Hajiyev, Kanan"]
[Black "Prieto Aranguren, Alain"]
[WhiteFideId "13404148"]
[BlackFideId "2268906"]
[WhiteElo "2528"]
[BlackElo "2361"]
[Result "0-1"]
[Round "10"]
[TimeControl "180+2"]
[Date "2023.07.04"]
[WhiteClock "0:00:02"]
[BlackClock "0:00:29"]
[Board "92"]

1. d4 {[%clk 0:03:00]}  g6 {[%clk 0:02:43]} 2. c4 {[%clk 0:03:01]}  Bg7 {[%clk 0:02:43]} 3. Nf3 {[%clk 0:03:02]}  d6 {[%clk 0:02:42]} 4. g3 {[%clk 0:03:03]}  Nd7 {[%clk 0:02:40]} 5. Bg2 {[%clk 0:03:03]}  e5 {[%clk 0:02:39]} 6. O-O {[%clk 0:03:04]}  Ne7 {[%clk 0:02:38]} 7. dxe5 {[%clk 0:03:04]}  dxe5 {[%clk 0:02:38]} 8. Nc3 {[%clk 0:03:04]}  O-O {[%clk 0:02:38]} 9. Nd5 {[%clk 0:03:05]}  c6 {[%clk 0:02:36]} 10. Nxe7+ {[%clk 0:03:03]}  Qxe7 {[%clk 0:02:36]} 11. Bg5 {[%clk 0:03:03]}  Qe6 {[%clk 0:02:34]} 12. Qc2 {[%clk 0:03:02]}  Nc5 {[%clk 0:02:31]} 13. Rfd1 {[%clk 0:03:01]}  Qf5 {[%clk 0:02:30]} 14. Qxf5 {[%clk 0:03:00]}  Bxf5 {[%clk 0:02:29]} 15. Be7 {[%clk 0:03:00]}  Na4 {[%clk 0:02:28]} 16. Bxf8 {[%clk 0:02:59]}  Kxf8 {[%clk 0:02:28]} 17. Rd2 {[%clk 0:02:09]}  c5 {[%clk 0:02:12]} 18. Nh4 {[%clk 0:02:05]}  Be6 {[%clk 0:02:09]} 19. Bd5 {[%clk 0:01:41]}  Bxd5 {[%clk 0:02:07]} 20. cxd5 {[%clk 0:01:41]}  Ke7 {[%clk 0:02:02]} 21. e4 {[%clk 0:01:41]}  Kd6 {[%clk 0:02:01]} 22. Rc1 {[%clk 0:01:37]}  b5 {[%clk 0:01:58]} 23. Nf3 {[%clk 0:01:31]}  Bh6 {[%clk 0:01:56]} 24. Rdc2 {[%clk 0:01:26]}  Bxc1 {[%clk 0:01:54]} 25. Rxc1 {[%clk 0:01:27]}  Nxb2 {[%clk 0:01:53]} 26. Ng5 {[%clk 0:01:28]}  f6 {[%clk 0:01:46]} 27. Nxh7 {[%clk 0:01:25]}  Nd3 {[%clk 0:01:23]} 28. Rd1 {[%clk 0:01:18]}  c4 {[%clk 0:01:22]} 29. Nxf6 {[%clk 0:01:18]}  Rc8 {[%clk 0:01:16]} 30. a3 {[%clk 0:01:17]}  c3 {[%clk 0:01:12]} 31. Ne8+ {[%clk 0:01:17]}  Kd7 {[%clk 0:01:01]} 32. Nf6+ {[%clk 0:01:17]}  Ke7 {[%clk 0:00:59]} 33. d6+ {[%clk 0:00:38]}  Kxf6 {[%clk 0:00:58]} 34. d7 {[%clk 0:00:39]}  c2 {[%clk 0:00:57]} 35. dxc8=Q {[%clk 0:00:35]}  cxd1=Q+ {[%clk 0:00:56]} 36. Kg2 {[%clk 0:00:36]}  Ne1+ {[%clk 0:00:56]} 37. Kf1 {[%clk 0:00:26]}  Nf3+ {[%clk 0:00:40]} 38. Kg2 {[%clk 0:00:27]}  Nd4 {[%clk 0:00:40]} 39. Qf8+ {[%clk 0:00:14]}  Ke6 {[%clk 0:00:40]} 40. Qe8+ {[%clk 0:00:15]}  Kd6 {[%clk 0:00:40]} 41. Qxg6+ {[%clk 0:00:16]}  Kc5 {[%clk 0:00:39]} 42. Qg5 {[%clk 0:00:13]}  Qf3+ {[%clk 0:00:37]} 43. Kh3 {[%clk 0:00:11]}  Qxe4 {[%clk 0:00:37]} 44. Qc1+ {[%clk 0:00:10]}  Kb6 {[%clk 0:00:36]} 45. Qb2 {[%clk 0:00:04]}  Nf3 {[%clk 0:00:34]} 46. Qb4 {[%clk 0:00:02]}  Ng1# {[%clk 0:00:29]} 0-1


[Site "https://www.chess.com"]